fUST/lending_fUST_20250217
["ID","MTS","AMOUNT","RATE_DAILY","PERIOD"]
[353373616,1739803832770,-500.0,0.00010957,2]
[353373618,1739803832782,-500.0,0.00010957,2]
[353373620,1739803832792,-500.0,0.00010957,2]
[353373622,1739803832801,-500.0,0.00010957,2]
[353373624,1739803832810,-500.0,0.00010957,2]
[353373626,1739803832820,-500.0,0.00010957,2]
[353373628,1739803832830,-500.0,0.00010957,2]
[353373630,1739803832839,-197.75266198,0.00010957,2]
[353373632,1739803832848,-500.0,0.00010957,2]
[353373634,1739803832858,-159.65958823,0.00010957,2]
[353373636,1739803832867,-204.89624546,0.00010957,2]
[353373638,1739803832877,-500.0,0.00010958,2]
[353373640,1739803832886,-503.01103909,0.00010958,2]
[353373642,1739803832896,-370.24720803,0.00010958,2]
[353373644,1739803832905,-560.31942373,0.00010958,2]
[353373646,1739803832914,-500.0,0.00010958,2]
[353373648,1739803832923,-500.0,0.00010958,2]
[353373650,1739803832932,-500.0,0.00010958,2]
[353373651,1739803832942,-500.0,0.00010958,2]
[353373654,1739803832952,-500.0,0.00010958,2]
[353373655,1739803832960,-500.0,0.00010958,2]
[353373657,1739803832969,-500.0,0.00010958,2]
[353373659,1739803832979,-501.75137019,0.00010958,2]
[353373661,1739803832988,-500.0,0.00010958,2]
[353373663,1739803832997,-414.13899221,0.00010958,2]
[353373665,1739803833007,-500.0,0.00010958,2]
[353373667,1739803833017,-501.93500696,0.00010958,2]
[353373669,1739803833027,-500.0,0.00010958,2]
[353373671,1739803833036,-504.09123131,0.00010958,2]
[353373673,1739803833046,-502.81675813,0.00010958,2]
[353373675,1739803833056,-505.96156691,0.00010958,2]
[353373677,1739803833065,-500.0,0.00010958,2]
[353373679,1739803833075,-500.0,0.00010958,2]
[353373681,1739803833085,-501.34624512,0.00010958,2]
[353373683,1739803833095,-500.0,0.00010958,2]
[353373685,1739803833104,-500.0,0.00010958,2]
[353373687,1739803833114,-500.0,0.00010958,2]
[353373689,1739803833123,-500.0,0.00010958,2]
[353373691,1739803833133,-500.0,0.00010958,2]
[353373693,1739803833143,-501.86227407,0.00010958,2]
[353373695,1739803833153,-609.89194334,0.00010958,2]
[353373697,1739803833163,-500.0,0.00010958,2]
[353373711,1739803833295,-500.35233195,0.00010958,2]
[353373713,1739803833306,-501.15664739,0.00010958,2]
[353373715,1739803833316,-502.17396192,0.00010958,2]
[353373717,1739803833325,-500.0,0.00010958,2]
[353373719,1739803833334,-500.0,0.00010958,2]
[353373721,1739803833345,-500.8507884,0.00010958,2]
[353373723,1739803833355,-500.0,0.00010958,2]
[353373725,1739803833365,-648.77,0.00010958,2]
[353373727,1739803833375,-266.39782255,0.00010958,2]
[353373730,1739803833398,-233.60217745,0.00010958,2]
[353373732,1739803833407,-500.0,0.00010958,2]
[353373734,1739803833417,-176.700191,0.00010958,2]
[353373977,1739803838720,-323.299809,0.00010958,2]
[353373979,1739803838731,-619.34,0.00010958,2]
[353373981,1739803838743,-539.6,0.00010958,2]
[353373984,1739803838753,-500.0,0.00010958,2]
[353373987,1739803838762,-630.36,0.00010958,2]
[353373989,1739803838773,-500.0,0.00010958,2]
[353373991,1739803838782,-500.0,0.00010958,2]
[353373992,1739803838792,-500.0,0.00010958,2]
[353373994,1739803838801,-500.0,0.00010958,2]
[353373996,1739803838810,-500.0,0.00010958,2]
[353373998,1739803838820,-500.0,0.00010958,2]
[353374000,1739803838830,-500.0,0.00010958,2]
[353374002,1739803838839,-500.0,0.00010958,2]
[353374004,1739803838849,-500.0,0.00010958,2]
[353374006,1739803838858,-500.0,0.00010958,2]
[353374008,1739803838868,-500.0,0.00010958,2]
[353374010,1739803838877,-500.0,0.00010958,2]
[353374012,1739803838886,-530.07,0.00010958,2]
[353374014,1739803838895,-500.0,0.00010958,2]
[353374016,1739803838904,-504.32358152,0.00010958,2]
[353374018,1739803838913,-500.0,0.00010958,2]
[353374020,1739803838923,-500.0,0.00010958,2]
[353374022,1739803838932,-500.0,0.00010958,2]
[353374023,1739803838941,-500.0,0.00010958,2]
[353374025,1739803838949,-500.0,0.00010958,2]
[353374027,1739803838958,-500.0,0.00010958,2]
[353374029,1739803838967,-500.0,0.00010958,2]
[353374031,1739803838978,-500.0,0.00010958,2]
[353374033,1739803838987,-500.0,0.00010958,2]
[353374035,1739803838998,-500.0,0.00010958,2]
[353374037,1739803839008,-607.86,0.00010958,2]
[353374038,1739803839018,-501.68147153,0.00010958,2]
[353374039,1739803839027,-500.0,0.00010958,2]
[353374040,1739803839037,-500.0,0.00010958,2]
[353374041,1739803839047,-500.0,0.00010958,2]
[353374042,1739803839056,-500.0,0.00010958,2]
[353374043,1739803839066,-500.0,0.00010958,2]
[353374044,1739803839075,-615.0,0.00010958,2]
[353374045,1739803839084,-500.0,0.00010958,2]
[353374046,1739803839094,-500.0,0.00010958,2]
[353374047,1739803839103,-591.31,0.00010958,2]
[353374048,1739803839113,-500.0,0.00010958,2]
[353374049,1739803839123,-500.0,0.00010958,2]
[353374050,1739803839133,-500.0,0.00010958,2]
[353374051,1739803839142,-500.0,0.00010958,2]
[353374052,1739803839152,-500.0,0.00010958,2]
[353374053,1739803839164,-500.0,0.00010958,2]
[353374054,1739803839174,-500.0,0.00010958,2]
[353374055,1739803839184,-500.0,0.00010958,2]
[353374056,1739803839193,-500.0,0.00010958,2]
[353374057,1739803839203,-500.0,0.00010958,2]
[353374058,1739803839213,-578.16,0.00010958,2]
[353374060,1739803839224,-500.0,0.00010958,2]
[353374061,1739803839234,-500.0,0.00010958,2]
[353374062,1739803839243,-500.0,0.00010958,2]
[353374064,1739803839252,-502.71292363,0.00010958,2]
[353374066,1739803839262,-500.0,0.00010958,2]
[353374068,1739803839272,-500.0,0.00010958,2]
[353374070,1739803839284,-503.1260455,0.00010958,2]
[353374072,1739803839297,-500.0,0.00010958,2]
[353374075,1739803839309,-500.0,0.00010958,2]
[353374077,1739803839321,-500.0,0.00010958,2]
[353374079,1739803839334,-500.0,0.00010958,2]
[353374081,1739803839346,-502.41660396,0.00010958,2]
[353374084,1739803839357,-500.0,0.00010958,2]
[353374086,1739803839368,-500.0,0.00010958,2]
[353374088,1739803839379,-500.0,0.00010958,2]
[353374090,1739803839392,-500.0,0.00010958,2]
[353374093,1739803839403,-500.0,0.00010958,2]
[353374095,1739803839415,-500.0,0.00010958,2]
[353374097,1739803839427,-500.0,0.00010958,2]
[353374099,1739803839438,-500.0,0.00010958,2]
[353374101,1739803839449,-500.0,0.00010958,2]
[353374104,1739803839461,-502.81126132,0.00010958,2]
[353374106,1739803839472,-500.60477532,0.00010958,2]
[353374108,1739803839484,-500.0,0.00010958,2]
[353374110,1739803839496,-500.0,0.00010958,2]
[353374113,1739803839508,-500.0,0.00010958,2]
[353374115,1739803839519,-500.0,0.00010958,2]
[353374117,1739803839531,-500.0,0.00010958,2]
[353374119,1739803839543,-500.0,0.00010958,2]
[353374122,1739803839554,-500.0,0.00010958,2]
[353374124,1739803839564,-500.0,0.00010958,2]
[353374126,1739803839575,-500.0,0.00010958,2]
[353374128,1739803839587,-500.0,0.00010958,2]
[353374130,1739803839598,-500.0,0.00010958,2]
[353374132,1739803839609,-500.0,0.00010958,2]
[353374135,1739803839620,-500.0,0.00010958,2]
[353374137,1739803839633,-500.0,0.00010958,2]
[353374139,1739803839644,-500.0,0.00010958,2]
[353374141,1739803839656,-500.0,0.00010958,2]
[353374144,1739803839669,-500.0,0.00010958,2]
[353374146,1739803839680,-500.0,0.00010958,2]
[353374148,1739803839692,-500.0,0.00010958,2]
[353374150,1739803839706,-500.0,0.00010958,2]
[353374152,1739803839716,-500.0,0.00010958,2]
[353374154,1739803839731,-500.0,0.00010958,2]
[353374156,1739803839743,-504.66135188,0.00010958,2]
[353374158,1739803839753,-500.0,0.00010958,2]
[353374160,1739803839766,-500.0,0.00010958,2]
[353374163,1739803839778,-500.0,0.00010958,2]
[353374165,1739803839789,-500.0,0.00010958,2]
[353374167,1739803839801,-500.0,0.00010958,2]
[353374169,1739803839812,-500.0,0.00010958,2]
[353374171,1739803839822,-500.0,0.00010958,2]
[353374174,1739803839833,-500.0,0.00010958,2]
[353374176,1739803839844,-500.0,0.00010958,2]
[353374178,1739803839855,-500.0,0.00010958,2]
[353374180,1739803839866,-500.0,0.00010958,2]
[353374182,1739803839878,-500.0,0.00010958,2]
[353374185,1739803839889,-500.0,0.00010958,2]
[353374187,1739803839901,-500.0,0.00010958,2]
[353374189,1739803839913,-500.0,0.00010958,2]
[353374191,1739803839923,-558.88,0.00010958,2]
[353374193,1739803839933,-500.0,0.00010958,2]
[353374196,1739803839943,-500.0,0.00010958,2]
[353374198,1739803839954,-500.0,0.00010958,2]
[353374200,1739803839964,-500.0,0.00010958,2]
[353374202,1739803839974,-500.0,0.00010958,2]
[353374204,1739803839985,-991.45,0.00010958,2]
[353374206,1739803839997,-500.0,0.00010958,2]
[353374208,1739803840009,-500.0,0.00010958,2]
[353374210,1739803840021,-500.0,0.00010958,2]
[353374212,1739803840033,-500.0,0.00010958,2]
[353374214,1739803840045,-550.9,0.00010958,2]
[353374215,1739803840055,-500.0,0.00010958,2]
[353374217,1739803840065,-500.0,0.00010958,2]
[353374219,1739803840076,-500.0,0.00010958,2]
[353374221,1739803840087,-500.0,0.00010958,2]
[353374224,1739803840098,-500.0,0.00010958,2]
[353374225,1739803840109,-500.0,0.00010958,2]
[353374226,1739803840121,-500.0,0.00010958,2]
[353374227,1739803840131,-500.0,0.00010958,2]
[353374228,1739803840142,-500.0,0.00010958,2]
[353374229,1739803840152,-500.0,0.00010958,2]
[353374230,1739803840162,-500.0,0.00010958,2]
[353374231,1739803840172,-500.0,0.00010958,2]
[353374232,1739803840183,-500.0,0.00010958,2]
[353374233,1739803840194,-623.82,0.00010958,2]
[353374235,1739803840205,-500.0,0.00010958,2]
[353374236,1739803840215,-500.0,0.00010958,2]
[353374237,1739803840229,-500.0,0.00010958,2]
[353374238,1739803840239,-500.0,0.00010958,2]
[353374239,1739803840251,-500.0,0.00010958,2]
[353374240,1739803840262,-500.0,0.00010958,2]
[353374241,1739803840273,-500.0,0.00010958,2]
[353374242,1739803840284,-500.0,0.00010958,2]
[353374243,1739803840295,-500.0,0.00010958,2]
[353374244,1739803840306,-500.0,0.00010958,2]
[353374245,1739803840318,-500.0,0.00010958,2]
[353374246,1739803840329,-500.0,0.00010958,2]
[353374247,1739803840339,-500.0,0.00010958,2]
[353374248,1739803840350,-500.0,0.00010958,2]
[353374249,1739803840361,-500.0,0.00010958,2]
[353374250,1739803840372,-282.25228485,0.00010958,2]
[353374251,1739803840383,-500.0,0.00010958,2]
[353374252,1739803840393,-500.0,0.00010958,2]
[353374253,1739803840405,-500.0,0.00010958,2]
[353374254,1739803840415,-500.0,0.00010958,2]
[353374255,1739803840426,-500.0,0.00010958,2]
[353374256,1739803840437,-500.0,0.00010958,2]
[353374257,1739803840448,-157.89091753,0.00010958,2]
[353374258,1739803840459,-2075.19,0.00010958,2]
[353374259,1739803840469,-500.0,0.00010958,2]
[353374260,1739803840481,-500.0,0.00010958,2]
[353374261,1739803840491,-500.0,0.00010958,2]
[353374262,1739803840502,-550.54,0.00010958,2]
[353374263,1739803840513,-500.0,0.00010958,2]
[353374265,1739803840524,-500.0,0.00010958,2]
[353374267,1739803840535,-500.0,0.00010958,2]
[353374268,1739803840547,-831.35,0.00010958,2]
[353374270,1739803840558,-500.0,0.00010958,2]
[353374272,1739803840569,-184.09065981,0.00011041,2]
[353374288,1739803840709,-500.0,0.00011041,2]
[353374290,1739803840725,-500.0,0.00011041,2]
[353374292,1739803840735,-500.0,0.00011041,2]
[353374294,1739803840745,-309.62,0.00011041,2]
[353374296,1739803840754,-500.0,0.00011041,2]
[353374298,1739803840764,-402.65,0.00011041,2]
[353374300,1739803840774,-577.68,0.00011041,2]
[353374302,1739803840783,-500.0,0.00011041,2]
[353374304,1739803840793,-224.20579526,0.00011041,2]
[353374306,1739803840803,-500.0,0.00011041,2]
[353374308,1739803840812,-591.95,0.00011041,2]
[353374310,1739803840822,-500.0,0.00011041,2]
[353374312,1739803840831,-525.88,0.00011041,2]
[353374314,1739803840840,-500.0,0.00011041,2]
[353374316,1739803840850,-605.42,0.00011041,2]
[353374318,1739803840860,-384.06,0.00011041,2]
[353374320,1739803840870,-503.50174926,0.00011041,2]
[353374322,1739803840880,-578.07,0.00011041,2]
[353374325,1739803840890,-328.43,0.00011041,2]
[353374326,1739803840899,-500.0,0.00011041,2]
[353374329,1739803840909,-374.48,0.00011041,2]
[353374331,1739803840918,-500.0,0.00011041,2]
[353374333,1739803840928,-574.78,0.00011041,2]
[353374335,1739803840938,-500.0,0.00011041,2]
[353374336,1739803840948,-188.27,0.00011041,2]
[353374338,1739803840957,-500.0,0.00011041,2]
[353374340,1739803840966,-154.01,0.00011041,2]
[353374342,1739803840976,-500.0,0.00011041,2]
[353374343,1739803840986,-500.0,0.00011041,2]
[353374345,1739803840996,-500.0,0.00011041,2]
[353374347,1739803841006,-500.0,0.00011041,2]
[353374348,1739803841015,-154.39,0.00011041,2]
[353374350,1739803841024,-500.0,0.00011041,2]
[353374352,1739803841035,-585.82,0.00011041,2]
[353374354,1739803841043,-500.0,0.00011041,2]
[353374355,1739803841052,-174.42,0.00011041,2]
[353374357,1739803841062,-401.11,0.00011041,2]
[353374359,1739803841072,-500.0,0.00011041,2]
[353374361,1739803841081,-177.4,0.00011041,2]
[353374362,1739803841090,-500.0,0.00011041,2]
[353374364,1739803841100,-500.0,0.00011041,2]
[353374366,1739803841110,-457.78,0.00011041,2]
[353374368,1739803841119,-991.45,0.00011041,2]
[353374370,1739803841129,-243.23,0.00011041,2]
[353374371,1739803841137,-576.95,0.00011041,2]
[353374373,1739803841147,-500.0,0.00011041,2]
[353374375,1739803841156,-500.0,0.00011041,2]
[353374377,1739803841165,-183.15,0.00011041,2]
[353374378,1739803841175,-175.45,0.00011041,2]
[353374380,1739803841184,-254.4,0.00011041,2]
[353374382,1739803841194,-500.0,0.00011041,2]
[353374383,1739803841204,-154.9,0.00011041,2]
[353374385,1739803841214,-500.0,0.00011041,2]
[353374387,1739803841224,-500.0,0.00011041,2]
[353374389,1739803841234,-623.82,0.00011041,2]
[353374391,1739803841246,-500.0,0.00011041,2]
[353374392,1739803841256,-500.0,0.00011041,2]
[353374394,1739803841266,-500.0,0.00011041,2]
[353374396,1739803841277,-485.07,0.00011041,2]
[353374397,1739803841286,-500.0,0.00011041,2]
[353374399,1739803841295,-500.0,0.00011041,2]
[353374401,1739803841305,-612.68,0.00011041,2]
[353374403,1739803841315,-633.42,0.00011041,2]
[353374404,1739803841323,-443.17,0.00011041,2]
[353374406,1739803841333,-500.0,0.00011041,2]
[353374408,1739803841343,-208.1,0.00011041,2]
[353374410,1739803841352,-500.0,0.00011041,2]
[353374411,1739803841361,-219.86,0.00011041,2]
[353374413,1739803841371,-500.0,0.00011041,2]
[353374415,1739803841380,-2075.19,0.00011041,2]
[353374417,1739803841389,-500.0,0.00011041,2]
[353374419,1739803841399,-500.0,0.00011041,2]
[353374420,1739803841408,-227.89,0.00011041,2]
[353374422,1739803841418,-500.0,0.00011041,2]
[353374424,1739803841428,-831.35,0.00011041,2]
[353374426,1739803841437,-500.0,0.00011041,2]
[353374427,1739803841447,-500.0,0.00011122,2]
[353374429,1739803841456,-500.0,0.00011122,2]
[353374431,1739803841465,-316.67396098,0.00011122,2]
[353374433,1739803841477,-500.0,0.00011123,2]
[353374435,1739803841487,-163.01,0.00011123,2]
[353374436,1739803841497,-500.0,0.00011123,2]
[353374438,1739803841506,-500.0,0.00011123,2]
[353374440,1739803841515,-500.0,0.00011123,2]
[353374442,1739803841525,-500.0,0.00011123,2]
[353374444,1739803841534,-500.0,0.00011123,2]
[353374446,1739803841544,-500.0,0.00011123,2]
[353374448,1739803841554,-500.0,0.00011123,2]
[353374449,1739803841564,-500.0,0.00011123,2]
[353374451,1739803841573,-496.5,0.00011123,2]
[353374453,1739803841583,-500.0,0.00011123,2]
[353374454,1739803841592,-535.32,0.00011123,2]
[353374456,1739803841602,-586.24,0.00011123,2]
[353374458,1739803841612,-500.0,0.00011123,2]
[353374460,1739803841621,-991.45,0.00011123,2]
[353374462,1739803841631,-599.23,0.00011123,2]
[353374463,1739803841640,-500.0,0.00011123,2]
[353374465,1739803841649,-500.0,0.00011123,2]
[353374467,1739803841660,-500.0,0.00011123,2]
[353374469,1739803841669,-500.0,0.00011123,2]
[353374471,1739803841678,-623.82,0.00011123,2]
[353374473,1739803841687,-500.0,0.00011123,2]
[353374474,1739803841699,-500.0,0.00011123,2]
[353374476,1739803841709,-500.0,0.00011123,2]
[353374478,1739803841719,-500.0,0.00011123,2]
[353374480,1739803841729,-500.0,0.00011123,2]
[353374482,1739803841739,-500.0,0.00011123,2]
[353374483,1739803841749,-511.6,0.00011123,2]
[353374485,1739803841759,-443.38,0.00011123,2]
[353374487,1739803841769,-2075.19,0.00011123,2]
[353374489,1739803841778,-500.0,0.00011123,2]
[353374491,1739803841788,-500.0,0.00011123,2]
[353374493,1739803841797,-500.0,0.00011123,2]
[353374494,1739803841806,-831.35,0.00011123,2]
[353374496,1739803841815,-500.88910816,0.00011143,2]
[353374498,1739803841824,-500.0,0.00011143,2]
[353374500,1739803841834,-500.0,0.00011172,2]
[353374502,1739803841843,-501.56720677,0.00011204,2]
[353374503,1739803841853,-332.4,0.00011205,2]
[353374505,1739803841864,-388.41,0.00011205,2]
[353374507,1739803841873,-245.36,0.00011205,2]
[353374509,1739803841883,-166.11,0.00011205,2]
[353374511,1739803841892,-500.0,0.00011205,2]
[353374513,1739803841901,-500.0,0.00011205,2]
[353374514,1739803841911,-224.36,0.00011205,2]
[353374516,1739803841920,-284.99,0.00011205,2]
[353374518,1739803841929,-384.36,0.00011205,2]
[353374520,1739803841938,-500.0,0.00011205,2]
[353374522,1739803841947,-991.45,0.00011205,2]
[353374524,1739803841956,-500.0,0.00011205,2]
[353374525,1739803841965,-500.0,0.00011205,2]
[353374527,1739803841974,-500.0,0.00011205,2]
[353374529,1739803841984,-500.0,0.00011205,2]
[353374531,1739803841994,-623.82,0.00011205,2]
[353374533,1739803842003,-500.0,0.00011205,2]
[353374535,1739803842013,-500.0,0.00011205,2]
[353374536,1739803842023,-500.0,0.00011205,2]
[353374538,1739803842032,-500.0,0.00011205,2]
[353374540,1739803842041,-184.29,0.00011205,2]
[353374542,1739803842051,-500.0,0.00011205,2]
[353374544,1739803842060,-2075.19,0.00011205,2]
[353374546,1739803842070,-500.0,0.00011205,2]
[353374548,1739803842079,-500.0,0.00011205,2]
[353374549,1739803842089,-500.0,0.00011205,2]
[353374551,1739803842098,-831.35,0.00011205,2]
[353374553,1739803842107,-500.0,0.00011287,2]
[353374555,1739803842117,-500.0,0.00011287,2]
[353374556,1739803842127,-991.45,0.00011287,2]
[353374558,1739803842136,-298.72,0.00011287,2]
[353374560,1739803842145,-500.0,0.00011287,2]
[353374562,1739803842154,-500.0,0.00011287,2]
[353374564,1739803842163,-500.0,0.00011287,2]
[353374565,1739803842173,-623.82,0.00011287,2]
[353374567,1739803842183,-500.0,0.00011287,2]
[353374569,1739803842191,-500.0,0.00011287,2]
[353374571,1739803842201,-619.13,0.00011287,2]
[353374573,1739803842212,-500.0,0.00011287,2]
[353374575,1739803842222,-2075.19,0.00011287,2]
[353374577,1739803842234,-638.1,0.00011287,2]
[353374578,1739803842243,-500.0,0.00011287,2]
[353374580,1739803842252,-500.0,0.00011287,2]
[353374582,1739803842262,-831.35,0.00011287,2]
[353374584,1739803842271,-500.0,0.00011369,2]
[353374586,1739803842281,-500.0,0.00011369,2]
[353374587,1739803842291,-991.45,0.00011369,2]
[353374589,1739803842300,-500.0,0.00011369,2]
[353374591,1739803842310,-500.0,0.00011369,2]
[353374593,1739803842321,-500.0,0.00011369,2]
[353374594,1739803842331,-623.82,0.00011369,2]
[353374596,1739803842341,-500.0,0.00011369,2]
[353374598,1739803842351,-441.24,0.00011369,2]
[353374600,1739803842360,-500.0,0.00011369,2]
[353374601,1739803842369,-2075.19,0.00011369,2]
[353374603,1739803842379,-500.0,0.00011369,2]
[353374605,1739803842390,-153.99,0.00011369,2]
[353374607,1739803842399,-500.0,0.00011452,2]
[353374609,1739803842409,-150.53049372,0.00011452,2]
[353374613,1739803842487,-349.46950628,0.00011452,2]
[353374614,1739803842497,-991.45,0.00011452,2]
[353374615,1739803842506,-501.25,0.00011452,2]
[353374616,1739803842516,-500.0,0.00011452,2]
[353374617,1739803842526,-500.0,0.00011452,2]
[353374618,1739803842535,-623.82,0.00011452,2]
[353374619,1739803842545,-533.58,0.00011452,2]
[353374621,1739803842554,-500.0,0.00011452,2]
[353374622,1739803842564,-2075.19,0.00011452,2]
[353374624,1739803842573,-500.0,0.00011452,2]
[353374626,1739803842582,-500.0,0.00011534,2]
[353374627,1739803842592,-500.0,0.00011534,2]
[353374628,1739803842601,-991.45,0.00011534,2]
[353374629,1739803842611,-446.09,0.00011534,2]
[353374630,1739803842621,-550.43622337,0.00011534,2]
[353374631,1739803842630,-623.82,0.00011534,2]
[353374632,1739803842640,-500.0,0.00011534,2]
[353374633,1739803842649,-2075.19,0.00011534,2]
[353374634,1739803842659,-500.0,0.00011534,2]
[353374636,1739803842668,-500.0,0.00011616,2]
[353374637,1739803842677,-500.0,0.00011616,2]
[353374639,1739803842687,-991.45,0.00011616,2]
[353374641,1739803842697,-623.82,0.00011616,2]
[353374643,1739803842710,-500.0,0.00011616,2]
[353374645,1739803842719,-2075.19,0.00011616,2]
[353374647,1739803842730,-500.0,0.00011616,2]
[353374649,1739803842741,-500.0,0.00011698,2]
[353374650,1739803842750,-500.0,0.00011698,2]
[353374652,1739803842760,-991.45,0.00011698,2]
[353374654,1739803842770,-623.82,0.00011698,2]
[353374656,1739803842781,-499.46,0.00011698,2]
[353374658,1739803842791,-2075.19,0.00011698,2]
[353374660,1739803842801,-500.0,0.00011698,2]
[353374661,1739803842810,-500.0,0.0001178,2]
[353374663,1739803842821,-500.0,0.0001178,2]
[353374665,1739803842831,-991.45,0.0001178,2]
[353374667,1739803842841,-623.82,0.0001178,2]
[353374669,1739803842851,-2075.19,0.0001178,2]
[353374671,1739803842860,-489.56,0.0001178,2]
[353374673,1739803842870,-500.0,0.00011863,2]
[353374674,1739803842880,-500.0,0.00011863,2]
[353374676,1739803842890,-991.45,0.00011863,2]
[353374678,1739803842899,-623.82,0.00011863,2]
[353374680,1739803842909,-2075.19,0.00011863,2]
[353374682,1739803842918,-268.85015794,0.00011945,2]
[353374684,1739803842927,-500.0,0.00011945,2]
[353374685,1739803842937,-991.45,0.00011945,2]
[353374687,1739803842946,-623.82,0.00011945,2]
[353374689,1739803842956,-2075.19,0.00011945,2]
[353374691,1739803842966,-500.0,0.00012027,2]
[353374693,1739803842975,-991.45,0.00012027,2]
[353374695,1739803842988,-623.82,0.00012027,2]
[353374697,1739803842997,-2075.19,0.00012027,2]
[353374698,1739803843006,-181.78,0.00012109,2]
[353374700,1739803843016,-991.45,0.00012109,2]
[353374702,1739803843025,-623.82,0.00012109,2]
[353374704,1739803843034,-2075.19,0.00012109,2]
[353374706,1739803843044,-991.45,0.00012191,2]
[353374707,1739803843053,-623.82,0.00012191,2]
[353374709,1739803843062,-2075.19,0.00012191,2]
[353374711,1739803843072,-991.45,0.00012273,2]
[353374713,1739803843081,-623.82,0.00012273,2]
[353374716,1739803843091,-2075.19,0.00012273,2]
[353374717,1739803843100,-166.0,0.00012329,2]
[353374720,1739803843109,-991.45,0.00012356,2]
[353374722,1739803843119,-623.82,0.00012356,2]
[353374724,1739803843128,-2075.19,0.00012356,2]
[353374726,1739803843138,-7438.69753278,0.00012392,2]
[353374728,1739803843148,-1140.26106688,0.0001242,2]
[353374730,1739803843157,-166.8647597,0.0001242,2]
[353374732,1739803843167,-991.45,0.00012438,2]
[353374734,1739803843176,-623.82,0.00012438,2]
[353374736,1739803843185,-2075.19,0.00012438,2]
[353374738,1739803843194,-19215.46797917,0.000125,5]
[353374740,1739803843204,-220771.43906535,0.000125,5]
[353374747,1739803843279,-521.39395464,0.000125,5]
[353374758,1739803843470,-831.35,0.00011369,2]
[353374759,1739803843481,-831.35,0.00011452,2]
[353374760,1739803843490,-831.35,0.00011534,2]
[353374761,1739803843499,-831.35,0.00011616,2]
[353374762,1739803843509,-831.35,0.00011698,2]
[353374763,1739803843519,-831.35,0.0001178,2]
[353374764,1739803843528,-831.35,0.00011863,2]
[353374765,1739803843538,-6236.15047193,0.000125,5]
[353374766,1739803843548,-74373.33852574,0.000125,5]
[353374859,1739803846622,-831.35,0.00011945,2]
[353374861,1739803846632,-831.35,0.00012027,2]
[353374863,1739803846642,-831.35,0.00012109,2]
[353374865,1739803846651,-831.35,0.00012191,2]
[353374867,1739803846661,-831.35,0.00012273,2]
[353374869,1739803846670,-831.35,0.00012356,2]
[353374871,1739803846679,-831.35,0.00012438,2]
[353374873,1739803846689,-4053.6135,0.000125,5]
[353374876,1739803846703,-10812.66813009,0.000125,5]
[353374882,1739803846740,-17293.79399684,0.000125,5]
[353374884,1739803846752,-780.19376327,0.000125,5]